[Event "*** Titled Tuesday Blitz AM"]
[Site "Chess.com"]
[Date "2020.01.07"]
[Round "8"]
[White "Genghis_K"]
[Black "Triumphmate"]
[Result "1-0"]
[WhiteElo "2895"]
[BlackElo "2640"]
[TimeControl "180+2"]
[EndTime "10:48:46 PST"]
[Termination "Genghis_K won by resignation"]

1. e4 {[%clk 0:03:01.9]} 1... d5 {[%clk 0:03:00.7]} 2. exd5 {[%clk 0:03:02.8]}
2... Nf6 {[%clk 0:03:02]} 3. d4 {[%clk 0:03:03.7]} 3... Bg4 {[%clk 0:03:03.3]}
4. Bb5+ {[%clk 0:03:05.2]} 4... c6 {[%clk 0:03:03.9]} 5. dxc6 {[%clk 0:02:50.2]}
5... Nxc6 {[%clk 0:03:05.8]} 6. Ne2 {[%clk 0:02:43]} 6... e6 {[%clk 0:03:06.5]}
7. Nbc3 {[%clk 0:02:42.4]} 7... Bd6 {[%clk 0:03:07.4]} 8. O-O {[%clk 0:02:42.6]}
8... O-O {[%clk 0:03:05.6]} 9. Bg5 {[%clk 0:02:43]} 9... Bh5 {[%clk 0:02:56.2]}
10. Ne4 {[%clk 0:02:40.2]} 10... Be7 {[%clk 0:02:46.9]} 11. Bxf6 {[%clk
0:02:33.8]} 11... Bxf6 {[%clk 0:02:47.5]} 12. c3 {[%clk 0:02:35.4]} 12... Be7
{[%clk 0:02:46.3]} 13. N4g3 {[%clk 0:02:31]} 13... Bg6 {[%clk 0:02:46.7]} 14.
Nf4 {[%clk 0:02:32.7]} 14... Rc8 {[%clk 0:02:45.2]} 15. Nxg6 {[%clk 0:02:25.2]}
15... hxg6 {[%clk 0:02:42.4]} 16. Qe2 {[%clk 0:02:24.5]} 16... a6 {[%clk
0:02:32.2]} 17. Bd3 {[%clk 0:02:23.4]} 17... Bf6 {[%clk 0:02:30.1]} 18. Ne4
{[%clk 0:02:24.3]} 18... Qe7 {[%clk 0:02:30.1]} 19. Rfe1 {[%clk 0:02:20.5]}
19... Rfd8 {[%clk 0:02:26.5]} 20. Rad1 {[%clk 0:02:21.7]} 20... Rd5 {[%clk
0:02:16.7]} 21. g3 {[%clk 0:02:22]} 21... Rcd8 {[%clk 0:02:17.2]} 22. Nxf6+
{[%clk 0:02:19.7]} 22... Qxf6 {[%clk 0:02:17.2]} 23. Be4 {[%clk 0:02:21.3]}
23... R5d6 {[%clk 0:02:13.4]} 24. h4 {[%clk 0:02:19.4]} 24... e5 {[%clk
0:02:12.2]} 25. d5 {[%clk 0:02:13.1]} 25... Nb8 {[%clk 0:01:58.3]} 26. c4 {[%clk
0:02:14.4]} 26... Nd7 {[%clk 0:01:58.9]} 27. b4 {[%clk 0:02:13.4]} 27... b6
{[%clk 0:01:59.5]} 28. Qe3 {[%clk 0:02:12.8]} 28... Qe7 {[%clk 0:01:59.3]} 29.
c5 {[%clk 0:02:11.2]} 29... Rf6 {[%clk 0:01:53]} 30. c6 {[%clk 0:01:59.8]} 30...
Nb8 {[%clk 0:01:38.4]} 31. Qxb6 {[%clk 0:02:00.1]} 31... Rfd6 {[%clk 0:01:39.4]}
32. Qc5 {[%clk 0:01:56.2]} 32... f5 {[%clk 0:01:36.5]} 33. c7 {[%clk 0:01:45.3]}
33... Rc8 {[%clk 0:01:35.5]} 34. cxb8=Q {[%clk 0:01:43.1]} 34... Rxb8 {[%clk
0:01:37.4]} 35. Bc2 {[%clk 0:01:43.8]} 35... e4 {[%clk 0:01:31.3]} 36. Ba4
{[%clk 0:01:44.5]} 36... Qe5 {[%clk 0:01:28.4]} 37. Qd4 {[%clk 0:01:44.4]} 37...
Qe7 {[%clk 0:01:27.7]} 38. Bc6 {[%clk 0:01:45.6]} 38... Rbd8 {[%clk 0:01:28.2]}
39. Qc4 {[%clk 0:01:43.1]} 39... Qe5 {[%clk 0:01:29.3]} 40. a4 {[%clk
0:01:36.8]} 40... g5 {[%clk 0:01:25.4]} 41. hxg5 {[%clk 0:01:37.2]} 41... Rg6
{[%clk 0:01:26.1]} 42. f4 {[%clk 0:01:33.1]} 42... Qc7 {[%clk 0:01:18.9]} 43.
d6+ {[%clk 0:01:33.8]} 43... Qf7 {[%clk 0:01:17.6]} 44. Bd5 {[%clk 0:01:34.8]}
1-0

[Event "*** Titled Tuesday Blitz AM"]
[Site "Chess.com"]
[Date "2020.01.07"]
[Round "8"]
[White "miroslavsavic"]
[Black "mortngabriel"]
[Result "0-1"]
[WhiteElo "2074"]
[BlackElo "2375"]
[TimeControl "180+2"]
[EndTime "10:48:46 PST"]
[Termination "mortngabriel won by resignation"]

1. Nf3 {[%clk 0:03:01.9]} 1... Nf6 {[%clk 0:02:54.5]} 2. c4 {[%clk 0:03:00.7]}
2... c5 {[%clk 0:02:55.6]} 3. Nc3 {[%clk 0:02:58.5]} 3... Nc6 {[%clk 0:02:56.5]}
4. g3 {[%clk 0:02:59.6]} 4... d5 {[%clk 0:02:48.6]} 5. cxd5 {[%clk 0:02:57.8]}
5... Nxd5 {[%clk 0:02:50.5]} 6. Bg2 {[%clk 0:02:59.2]} 6... Nxc3 {[%clk
0:02:38.5]} 7. bxc3 {[%clk 0:02:55.7]} 7... g6 {[%clk 0:02:38.8]} 8. O-O {[%clk
0:02:55.1]} 8... Bg7 {[%clk 0:02:39.6]} 9. Rb1 {[%clk 0:02:53.5]} 9... O-O
{[%clk 0:02:39.6]} 10. Ba3 {[%clk 0:02:37.3]} 10... Qa5 {[%clk 0:02:37.2]} 11.
Qb3 {[%clk 0:02:28.9]} 11... Bf5 {[%clk 0:02:05.5]} 12. Ra1 {[%clk 0:02:04.7]}
12... b6 {[%clk 0:01:48.8]} 13. Nh4 {[%clk 0:02:03.7]} 13... Be6 {[%clk
0:01:47.4]} 14. Qb2 {[%clk 0:01:22.4]} 14... Rac8 {[%clk 0:01:47.4]} 15. Rac1
{[%clk 0:01:22.8]} 15... Rfd8 {[%clk 0:01:22.8]} 16. d3 {[%clk 0:01:21]} 16...
Nd4 {[%clk 0:00:49.6]} 17. Qb1 {[%clk 0:00:11.9]} 17... Nxe2+ {[%clk 0:00:49.3]}
0-1

[Event "*** Titled Tuesday Blitz AM"]
[Site "Chess.com"]
[Date "2020.01.07"]
[Round "8"]
[White "Kirill_Kopenkin"]
[Black "alex_zapata"]
[Result "1-0"]
[WhiteElo "2480"]
[BlackElo "2314"]
[TimeControl "180+2"]
[EndTime "10:48:47 PST"]
[Termination "Kirill_Kopenkin won by checkmate"]

1. e4 {[%clk 0:03:00.8]} 1... c5 {[%clk 0:02:57.3]} 2. Nf3 {[%clk 0:03:01.8]}
2... d6 {[%clk 0:02:56.7]} 3. d4 {[%clk 0:03:03.1]} 3... cxd4 {[%clk 0:02:58.6]}
4. Nxd4 {[%clk 0:03:04.6]} 4... Nf6 {[%clk 0:02:59.9]} 5. Nc3 {[%clk 0:03:06.2]}
5... a6 {[%clk 0:03:01.3]} 6. f3 {[%clk 0:03:07.6]} 6... e5 {[%clk 0:03:02]} 7.
Nb3 {[%clk 0:03:08.8]} 7... Be6 {[%clk 0:03:03.5]} 8. Be3 {[%clk 0:03:10.3]}
8... Nbd7 {[%clk 0:03:04.6]} 9. Qd2 {[%clk 0:03:10.1]} 9... b5 {[%clk
0:03:05.3]} 10. a4 {[%clk 0:03:10.9]} 10... b4 {[%clk 0:03:05.9]} 11. Nd5 {[%clk
0:03:09.3]} 11... Bxd5 {[%clk 0:03:06.2]} 12. exd5 {[%clk 0:03:11.2]} 12... Nb6
{[%clk 0:03:07.5]} 13. Bxb6 {[%clk 0:03:12.7]} 13... Qxb6 {[%clk 0:03:09.1]} 14.
a5 {[%clk 0:03:14.6]} 14... Qb7 {[%clk 0:03:10.4]} 15. Ra4 {[%clk 0:03:16]}
15... Rb8 {[%clk 0:02:40.5]} 16. Bc4 {[%clk 0:03:13.5]} 16... Be7 {[%clk
0:02:38.9]} 17. Nc1 {[%clk 0:03:12.7]} 17... e4 {[%clk 0:02:15.4]} 18. O-O
{[%clk 0:03:09.9]} 18... O-O {[%clk 0:02:04.2]} 19. Na2 {[%clk 0:02:51.4]} 19...
Rfc8 {[%clk 0:01:41.3]} 20. b3 {[%clk 0:02:49.1]} 20... exf3 {[%clk 0:01:13.8]}
21. gxf3 {[%clk 0:02:39.8]} 21... Qa7+ {[%clk 0:01:04.2]} 22. Qf2 {[%clk
0:02:36.2]} 22... Qc5 {[%clk 0:01:01.7]} 23. Re1 {[%clk 0:02:21.2]} 23... Bd8
{[%clk 0:00:50.8]} 24. Bxa6 {[%clk 0:02:07.2]} 24... Qxf2+ {[%clk 0:00:45.1]}
25. Kxf2 {[%clk 0:02:09.1]} 25... Rxc2+ {[%clk 0:00:45.6]} 26. Re2 {[%clk
0:02:10.3]} 26... Rc5 {[%clk 0:00:37.9]} 27. Nxb4 {[%clk 0:02:07.3]} 27... Rxa5
{[%clk 0:00:21.9]} 28. Rxa5 {[%clk 0:01:55.7]} 28... Bxa5 {[%clk 0:00:23.8]} 29.
Nc6 {[%clk 0:01:57.2]} 29... Bb6+ {[%clk 0:00:24.9]} 30. Kf1 {[%clk 0:01:52.4]}
30... Ra8 {[%clk 0:00:25.9]} 31. Bc4 {[%clk 0:01:44.7]} 31... Ra1+ {[%clk
0:00:26]} 32. Re1 {[%clk 0:01:44.8]} 32... Ra2 {[%clk 0:00:27.3]} 33. Re2 {[%clk
0:01:45.4]} 33... Ra1+ {[%clk 0:00:28.7]} 34. Kg2 {[%clk 0:01:42.3]} 34... Rg1+
{[%clk 0:00:24.8]} 35. Kh3 {[%clk 0:01:43.7]} 35... Nh5 {[%clk 0:00:24]} 36.
Re8# {[%clk 0:01:43.6]} 1-0

[Event "*** Titled Tuesday Blitz AM"]
[Site "Chess.com"]
[Date "2020.01.07"]
[Round "8"]
[White "2165149677570"]
[Black "KerryStead"]
[Result "0-1"]
[WhiteElo "2279"]
[BlackElo "2082"]
[TimeControl "180+2"]
[EndTime "10:48:48 PST"]
[Termination "KerryStead won by resignation"]

1. e4 {[%clk 0:03:01.9]} 1... e5 {[%clk 0:02:58]} 2. Nf3 {[%clk 0:02:56.2]} 2...
d5 {[%clk 0:02:59.2]} 3. exd5 {[%clk 0:02:55]} 3... Bd6 {[%clk 0:03:00]} 4. Nc3
{[%clk 0:02:53.1]} 4... f5 {[%clk 0:03:00.4]} 5. d4 {[%clk 0:02:31.1]} 5... e4
{[%clk 0:02:59.6]} 6. Ne5 {[%clk 0:02:29.8]} 6... Nf6 {[%clk 0:03:01]} 7. Bb5+
{[%clk 0:02:25.2]} 7... Bd7 {[%clk 0:03:01.5]} 8. Nxd7 {[%clk 0:02:03.7]} 8...
Nbxd7 {[%clk 0:03:01.7]} 9. f3 {[%clk 0:01:53.9]} 9... exf3 {[%clk 0:02:58.1]}
10. Qxf3 {[%clk 0:01:51.2]} 10... g6 {[%clk 0:02:58.4]} 11. O-O {[%clk 0:01:44]}
11... O-O {[%clk 0:02:57.9]} 12. Bf4 {[%clk 0:01:39.2]} 12... a6 {[%clk
0:02:54]} 13. Bd3 {[%clk 0:01:16.6]} 13... Nb6 {[%clk 0:02:42.3]} 14. Rae1
{[%clk 0:00:45]} 14... Bxf4 {[%clk 0:02:41.8]} 15. Qxf4 {[%clk 0:00:42.3]} 15...
Nbxd5 {[%clk 0:02:41.8]} 16. Nxd5 {[%clk 0:00:41.5]} 16... Nxd5 {[%clk
0:02:42.1]} 17. Qe5 {[%clk 0:00:41.9]} 17... c6 {[%clk 0:02:43.3]} 18. c4 {[%clk
0:00:42.8]} 18... Nf6 {[%clk 0:02:42.9]} 19. Qe6+ {[%clk 0:00:40]} 19... Kg7
{[%clk 0:02:43]} 20. Qe7+ {[%clk 0:00:40.4]} 20... Qxe7 {[%clk 0:02:43.1]} 21.
Rxe7+ {[%clk 0:00:42.3]} 21... Rf7 {[%clk 0:02:44.2]} 22. Rfe1 {[%clk
0:00:43.4]} 22... Rf8 {[%clk 0:02:43.8]} 23. Rxf7+ {[%clk 0:00:42.6]} 23... Rxf7
{[%clk 0:02:45]} 24. Re5 {[%clk 0:00:41.7]} 24... Rd7 {[%clk 0:02:45.6]} 25. d5
{[%clk 0:00:40.9]} 25... cxd5 {[%clk 0:02:46.3]} 26. cxd5 {[%clk 0:00:42.1]}
26... Nxd5 {[%clk 0:02:46.4]} 27. Bc4 {[%clk 0:00:40.5]} 27... Nf6 {[%clk
0:02:40.9]} 28. h3 {[%clk 0:00:28.4]} 28... h5 {[%clk 0:02:40.5]} 29. Re2 {[%clk
0:00:26.7]} 29... Ne4 {[%clk 0:02:39.7]} 30. g4 {[%clk 0:00:23.5]} 30... hxg4
{[%clk 0:02:40.1]} 31. hxg4 {[%clk 0:00:25.4]} 31... Kf6 {[%clk 0:02:37.3]} 32.
gxf5 {[%clk 0:00:26.5]} 32... gxf5 {[%clk 0:02:38]} 33. Kg2 {[%clk 0:00:28.4]}
33... Rd2 {[%clk 0:02:36.9]} 34. Rxd2 {[%clk 0:00:28.2]} 34... Nxd2 {[%clk
0:02:37.8]} 35. Bd5 {[%clk 0:00:29.9]} 35... b6 {[%clk 0:02:37.8]} 36. Kf2
{[%clk 0:00:31]} 36... Ke5 {[%clk 0:02:38.2]} 37. Bb7 {[%clk 0:00:32]} 37... a5
{[%clk 0:02:39.3]} 38. Ke3 {[%clk 0:00:33.9]} 38... Nc4+ {[%clk 0:02:40]} 39.
Kf3 {[%clk 0:00:33.6]} 39... Nxb2 {[%clk 0:02:40.9]} 40. Ke3 {[%clk 0:00:33.6]}
40... Nc4+ {[%clk 0:02:42]} 41. Kd3 {[%clk 0:00:34.2]} 41... Nd6 {[%clk
0:02:43.4]} 42. Ba6 {[%clk 0:00:34.6]} 42... b5 {[%clk 0:02:44.5]} 43. Ke3
{[%clk 0:00:33]} 43... Kd5 {[%clk 0:02:44]} 44. Kf4 {[%clk 0:00:33.5]} 44... Kc6
{[%clk 0:02:43.6]} 45. Ke5 {[%clk 0:00:35.2]} 45... Kb6 {[%clk 0:02:37.6]} 0-1

[Event "*** Titled Tuesday Blitz AM"]
[Site "Chess.com"]
[Date "2020.01.07"]
[Round "8"]
[White "MITerryble"]
[Black "EugeneRougon"]
[Result "1-0"]
[WhiteElo "2939"]
[BlackElo "2727"]
[TimeControl "180+2"]
[EndTime "10:49:00 PST"]
[Termination "MITerryble won by checkmate"]

1. e4 {[%clk 0:03:01.9]} 1... e6 {[%clk 0:03:00.6]} 2. d4 {[%clk 0:03:03]} 2...
d5 {[%clk 0:03:01.9]} 3. exd5 {[%clk 0:03:04.9]} 3... exd5 {[%clk 0:03:03]} 4.
Nf3 {[%clk 0:03:06.5]} 4... Nc6 {[%clk 0:03:04.6]} 5. Bb5 {[%clk 0:03:07.1]}
5... Bd6 {[%clk 0:03:04.9]} 6. h3 {[%clk 0:03:08.4]} 6... Ne7 {[%clk 0:03:00]}
7. c4 {[%clk 0:03:09.6]} 7... dxc4 {[%clk 0:03:00.6]} 8. Bxc4 {[%clk 0:03:10.6]}
8... O-O {[%clk 0:02:57.8]} 9. O-O {[%clk 0:03:11.7]} 9... Bf5 {[%clk
0:02:59.4]} 10. Nc3 {[%clk 0:03:13.2]} 10... Qd7 {[%clk 0:02:57]} 11. Re1 {[%clk
0:03:14]} 11... Rad8 {[%clk 0:02:46.9]} 12. d5 {[%clk 0:03:15.4]} 12... Nb4
{[%clk 0:02:17]} 13. Nd4 {[%clk 0:03:15.9]} 13... Bg6 {[%clk 0:02:18.5]} 14. a3
{[%clk 0:03:16.5]} 14... Na6 {[%clk 0:02:19.7]} 15. Bb5 {[%clk 0:03:16.7]} 15...
Qc8 {[%clk 0:02:18.5]} 16. Bg5 {[%clk 0:03:07.6]} 16... f6 {[%clk 0:02:02.9]}
17. Bd2 {[%clk 0:03:02.1]} 17... Bf7 {[%clk 0:02:03.9]} 18. Ne6 {[%clk
0:02:47.3]} 18... Bxe6 {[%clk 0:02:02.3]} 19. Rxe6 {[%clk 0:02:34.1]} 19... Nxd5
{[%clk 0:01:34.4]} 20. Bc4 {[%clk 0:02:35]} 20... Qxe6 {[%clk 0:01:25]} 21. Bxd5
{[%clk 0:02:27.7]} 21... Bh2+ {[%clk 0:01:26]} 22. Kxh2 {[%clk 0:02:29.6]} 22...
Rxd5 {[%clk 0:01:27.6]} 23. Nxd5 {[%clk 0:02:31.4]} 23... Qxd5 {[%clk
0:01:29.5]} 24. Be3 {[%clk 0:02:31.5]} 24... Qe5+ {[%clk 0:01:23.1]} 25. g3
{[%clk 0:02:32.5]} 25... Qxb2 {[%clk 0:01:23]} 26. Qd5+ {[%clk 0:02:30.8]} 26...
Kh8 {[%clk 0:01:22.9]} 27. Ra2 {[%clk 0:02:29]} 27... Qe5 {[%clk 0:01:15]} 28.
Qxb7 {[%clk 0:02:29.6]} 28... Nc5 {[%clk 0:01:06]} 29. Qxa7 {[%clk 0:02:30.7]}
29... Ne4 {[%clk 0:01:02]} 30. Rc2 {[%clk 0:02:25.8]} 30... Rc8 {[%clk
0:00:27.6]} 31. Qb7 {[%clk 0:02:18.9]} 31... Re8 {[%clk 0:00:19.2]} 32. Qxc7
{[%clk 0:02:12.7]} 32... Qe6 {[%clk 0:00:19.6]} 33. a4 {[%clk 0:02:07.5]} 33...
h5 {[%clk 0:00:20.1]} 34. Qc6 {[%clk 0:02:08.4]} 34... Qe7 {[%clk 0:00:21.1]}
35. a5 {[%clk 0:02:02.6]} 35... h4 {[%clk 0:00:21.5]} 36. gxh4 {[%clk 0:02:04]}
36... Qe5+ {[%clk 0:00:22.3]} 37. Kg2 {[%clk 0:02:05.4]} 37... Re6 {[%clk
0:00:21.7]} 38. Qa8+ {[%clk 0:02:02.9]} 38... Kh7 {[%clk 0:00:23.1]} 39. Rc8
{[%clk 0:02:04.1]} 39... Nd6 {[%clk 0:00:22]} 40. Rh8+ {[%clk 0:02:04.7]} 40...
Kg6 {[%clk 0:00:23.3]} 41. h5+ {[%clk 0:02:05]} 41... Kf7 {[%clk 0:00:21.2]} 42.
Qf8# {[%clk 0:02:05]} 1-0

[Event "*** Titled Tuesday Blitz AM"]
[Site "Chess.com"]
[Date "2020.01.07"]
[Round "8"]
[White "Zarikovs1999"]
[Black "Gareth-Bale11"]
[Result "1-0"]
[WhiteElo "2360"]
[BlackElo "2690"]
[TimeControl "180+2"]
[EndTime "10:49:03 PST"]
[Termination "Zarikovs1999 won by resignation"]

1. Nf3 {[%clk 0:02:51.7]} 1... d5 {[%clk 0:02:59.3]} 2. d4 {[%clk 0:02:50.4]}
2... Nf6 {[%clk 0:02:59.5]} 3. Bf4 {[%clk 0:02:50.4]} 3... c5 {[%clk 0:02:58.4]}
4. e3 {[%clk 0:02:49.2]} 4... Nc6 {[%clk 0:02:59.8]} 5. Bb5 {[%clk 0:02:48.7]}
5... Qa5+ {[%clk 0:02:58.4]} 6. Nc3 {[%clk 0:02:46.6]} 6... Ne4 {[%clk
0:02:58.5]} 7. O-O {[%clk 0:02:25.7]} 7... Bg4 {[%clk 0:02:37.9]} 8. Nxd5 {[%clk
0:02:04.7]} 8... O-O-O {[%clk 0:02:26.2]} 9. Bxc6 {[%clk 0:01:37]} 9... bxc6
{[%clk 0:02:28.1]} 10. Nc3 {[%clk 0:01:37.5]} 10... Nxc3 {[%clk 0:02:12.2]} 11.
bxc3 {[%clk 0:01:34.8]} 11... f6 {[%clk 0:02:14.1]} 12. Qe2 {[%clk 0:01:10.9]}
12... g5 {[%clk 0:01:56.8]} 13. Bg3 {[%clk 0:01:08.4]} 13... e6 {[%clk
0:01:39.6]} 14. Rab1 {[%clk 0:00:59.8]} 14... Bd6 {[%clk 0:01:39.9]} 15. Bxd6
{[%clk 0:00:58.8]} 15... Rxd6 {[%clk 0:01:41.8]} 16. dxc5 {[%clk 0:00:53.8]}
16... Rd5 {[%clk 0:01:37.1]} 17. Rb4 {[%clk 0:00:48.5]} 17... Bh5 {[%clk
0:01:27.4]} 18. Rfb1 {[%clk 0:00:41.7]} 18... Rhd8 {[%clk 0:01:28.8]} 19. e4
{[%clk 0:00:14.2]} 19... Bxf3 {[%clk 0:00:50.8]} 20. gxf3 {[%clk 0:00:13.2]}
20... Rd2 {[%clk 0:00:43.5]} 21. Rb8+ {[%clk 0:00:12.9]} 21... Kd7 {[%clk
0:00:45.4]} 22. Qxd2+ {[%clk 0:00:13.8]} 22... Ke7 {[%clk 0:00:47.3]} 23. Qxd8+
{[%clk 0:00:14.8]} 23... Qxd8 {[%clk 0:00:49.2]} 1-0

[Event "*** Titled Tuesday Blitz AM"]
[Site "Chess.com"]
[Date "2020.01.07"]
[Round "8"]
[White "XxPetroffsxX"]
[Black "Ovsiannikov_Maxim"]
[Result "1-0"]
[WhiteElo "1996"]
[BlackElo "2341"]
[TimeControl "180+2"]
[EndTime "10:49:08 PST"]
[Termination "XxPetroffsxX won on time"]

1. d4 {[%clk 0:03:00.4]} 1... d5 {[%clk 0:02:56.7]} 2. c4 {[%clk 0:02:59.6]}
2... Nc6 {[%clk 0:02:49.5]} 3. Nf3 {[%clk 0:02:54.9]} 3... Bg4 {[%clk
0:02:46.5]} 4. cxd5 {[%clk 0:02:53.1]} 4... Bxf3 {[%clk 0:02:46.8]} 5. dxc6
{[%clk 0:02:52.4]} 5... Bxc6 {[%clk 0:02:47]} 6. Nc3 {[%clk 0:02:48.5]} 6... e6
{[%clk 0:02:47.7]} 7. a3 {[%clk 0:02:48.9]} 7... Nf6 {[%clk 0:02:47.1]} 8. Bg5
{[%clk 0:02:49.1]} 8... h6 {[%clk 0:02:45.8]} 9. Bxf6 {[%clk 0:02:46.1]} 9...
Qxf6 {[%clk 0:02:44]} 10. e3 {[%clk 0:02:43.1]} 10... O-O-O {[%clk 0:02:44.6]}
11. Rc1 {[%clk 0:02:14.3]} 11... Be7 {[%clk 0:02:39.3]} 12. b4 {[%clk 0:02:12]}
12... b6 {[%clk 0:02:34.3]} 13. Ba6+ {[%clk 0:02:12.6]} 13... Kb8 {[%clk
0:02:33.9]} 14. O-O {[%clk 0:02:12.2]} 14... Qg5 {[%clk 0:02:23.8]} 15. g3
{[%clk 0:02:07.6]} 15... h5 {[%clk 0:02:15.8]} 16. f4 {[%clk 0:02:06.2]} 16...
Qg4 {[%clk 0:02:10.8]} 17. Qxg4 {[%clk 0:02:04.7]} 17... hxg4 {[%clk 0:02:12.2]}
18. Rf2 {[%clk 0:01:57.1]} 18... Rh5 {[%clk 0:01:58.2]} 19. Be2 {[%clk
0:01:56.7]} 19... f5 {[%clk 0:01:57.6]} 20. Bb5 {[%clk 0:01:47.9]} 20... Bb7
{[%clk 0:01:58]} 21. Ne2 {[%clk 0:01:44.8]} 21... g5 {[%clk 0:01:55]} 22. Bc6
{[%clk 0:01:44.3]} 22... Rd6 {[%clk 0:01:44.2]} 23. Bxb7 {[%clk 0:01:35.3]}
23... Kxb7 {[%clk 0:01:28.7]} 24. Rc3 {[%clk 0:01:25.7]} 24... Rh8 {[%clk
0:01:22.4]} 25. Nc1 {[%clk 0:01:24.4]} 25... Rc8 {[%clk 0:00:47]} 26. Nd3 {[%clk
0:01:24]} 1-0

[Event "*** Titled Tuesday Blitz AM"]
[Site "Chess.com"]
[Date "2020.01.07"]
[Round "8"]
[White "Onegust"]
[Black "wannabe2700"]
[Result "0-1"]
[WhiteElo "2556"]
[BlackElo "2770"]
[TimeControl "180+2"]
[EndTime "10:49:13 PST"]
[Termination "wannabe2700 won by resignation"]

1. e4 {[%clk 0:02:59.6]} 1... e6 {[%clk 0:03:00.4]} 2. d4 {[%clk 0:03:00.1]}
2... d5 {[%clk 0:03:01.5]} 3. Bd3 {[%clk 0:03:01.8]} 3... dxe4 {[%clk
0:03:02.4]} 4. Bxe4 {[%clk 0:03:03.7]} 4... Nf6 {[%clk 0:03:04]} 5. Bf3 {[%clk
0:03:04.9]} 5... c5 {[%clk 0:03:05.7]} 6. Ne2 {[%clk 0:03:05.9]} 6... Nc6 {[%clk
0:03:07.2]} 7. Be3 {[%clk 0:03:07.5]} 7... cxd4 {[%clk 0:03:08.1]} 8. Nxd4
{[%clk 0:03:07.1]} 8... Ne5 {[%clk 0:03:09.3]} 9. Nc3 {[%clk 0:03:03.6]} 9...
Bb4 {[%clk 0:03:01.9]} 10. O-O {[%clk 0:02:11.5]} 10... Bxc3 {[%clk 0:02:59.6]}
11. bxc3 {[%clk 0:02:11.7]} 11... Nxf3+ {[%clk 0:03:00.1]} 12. Qxf3 {[%clk
0:02:12.3]} 12... Qd5 {[%clk 0:02:47.2]} 13. Qe2 {[%clk 0:01:52.1]} 13... O-O
{[%clk 0:02:44.7]} 14. Rfd1 {[%clk 0:01:53.6]} 14... b6 {[%clk 0:02:37.9]} 15.
Nf3 {[%clk 0:01:35.4]} 15... Qc6 {[%clk 0:02:29.5]} 16. Bd4 {[%clk 0:01:34.3]}
16... Nd5 {[%clk 0:02:29.3]} 17. Ne5 {[%clk 0:01:34]} 17... Qc7 {[%clk
0:02:22.7]} 18. c4 {[%clk 0:01:29.5]} 18... Ne7 {[%clk 0:02:17.2]} 19. Rd3
{[%clk 0:00:51.8]} 19... f6 {[%clk 0:02:12.4]} 20. Ng4 {[%clk 0:00:29.8]} 20...
e5 {[%clk 0:02:11.7]} 21. Bb2 {[%clk 0:00:24.8]} 21... Ng6 {[%clk 0:01:59]} 22.
Ba3 {[%clk 0:00:18.5]} 22... Nf4 {[%clk 0:01:56.8]} 23. Qd1 {[%clk 0:00:11.1]}
23... Nxd3 {[%clk 0:01:44.4]} 24. Bxf8 {[%clk 0:00:11.1]} 24... Nf4 {[%clk
0:01:41.1]} 25. Bd6 {[%clk 0:00:11]} 25... Qxc4 {[%clk 0:01:23.2]} 26. Ne3
{[%clk 0:00:12.2]} 26... Qc6 {[%clk 0:01:17.7]} 27. Ba3 {[%clk 0:00:07]} 27...
Bb7 {[%clk 0:01:15.3]} 28. Qg4 {[%clk 0:00:08.2]} 28... h5 {[%clk 0:01:13.5]}
29. Qg3 {[%clk 0:00:08.1]} 29... Ne2+ {[%clk 0:01:14]} 0-1

[Event "*** Titled Tuesday Blitz AM"]
[Site "Chess.com"]
[Date "2020.01.07"]
[Round "8"]
[White "Butterfly"]
[Black "Supernotar"]
[Result "1-0"]
[WhiteElo "2411"]
[BlackElo "2554"]
[TimeControl "180+2"]
[EndTime "10:49:16 PST"]
[Termination "Butterfly won by resignation"]

1. Nf3 {[%clk 0:03:01.9]} 1... c5 {[%clk 0:02:57.3]} 2. b3 {[%clk 0:02:59.7]}
2... Nc6 {[%clk 0:02:51.1]} 3. Bb2 {[%clk 0:03:00.7]} 3... Nf6 {[%clk
0:02:48.2]} 4. c4 {[%clk 0:03:01.2]} 4... g6 {[%clk 0:02:43.3]} 5. Nc3 {[%clk
0:02:56.4]} 5... Bg7 {[%clk 0:02:41.7]} 6. Nd5 {[%clk 0:02:54.3]} 6... e6 {[%clk
0:02:38.6]} 7. Nc3 {[%clk 0:02:46.3]} 7... O-O {[%clk 0:02:36.4]} 8. g3 {[%clk
0:02:42.4]} 8... d5 {[%clk 0:02:33.5]} 9. Bg2 {[%clk 0:02:40.9]} 9... d4 {[%clk
0:02:33.6]} 10. Na4 {[%clk 0:02:36.6]} 10... Nd7 {[%clk 0:02:34.2]} 11. O-O
{[%clk 0:02:32]} 11... a6 {[%clk 0:02:28]} 12. Ba3 {[%clk 0:02:27.5]} 12... Qe7
{[%clk 0:02:23.2]} 13. Ne1 {[%clk 0:02:23.3]} 13... a5 {[%clk 0:02:16.4]} 14.
Bxc6 {[%clk 0:02:14.8]} 14... bxc6 {[%clk 0:02:15.9]} 15. Nd3 {[%clk 0:02:14.7]}
15... Rd8 {[%clk 0:02:15.4]} 16. Naxc5 {[%clk 0:02:06.5]} 16... Bf8 {[%clk
0:02:11.2]} 17. Nxd7 {[%clk 0:01:56]} 17... Qxa3 {[%clk 0:02:09.3]} 18. Nxf8
{[%clk 0:01:55.7]} 18... Qxf8 {[%clk 0:02:09.3]} 19. c5 {[%clk 0:01:49.6]} 19...
e5 {[%clk 0:02:05.2]} 20. Nxe5 {[%clk 0:01:42.9]} 20... Qxc5 {[%clk 0:02:05.3]}
21. f4 {[%clk 0:01:40.9]} 21... Bh3 {[%clk 0:02:03.3]} 22. Rc1 {[%clk
0:01:28.2]} 22... Qd5 {[%clk 0:02:01.9]} 23. Rf2 {[%clk 0:01:28.2]} 23... c5
{[%clk 0:01:54.3]} 24. Qc2 {[%clk 0:01:29.1]} 24... Rdc8 {[%clk 0:01:52.2]} 25.
Qc4 {[%clk 0:01:28.8]} 25... Qb7 {[%clk 0:01:52.3]} 26. g4 {[%clk 0:01:16.1]}
26... h5 {[%clk 0:01:42.5]} 27. gxh5 {[%clk 0:01:06.9]} 27... gxh5 {[%clk
0:01:43.2]} 28. Qd3 {[%clk 0:01:07]} 28... Be6 {[%clk 0:01:37.1]} 29. f5 {[%clk
0:01:07.3]} 29... Bd5 {[%clk 0:01:35.7]} 30. f6 {[%clk 0:01:05.4]} 30... Kh8
{[%clk 0:01:27.9]} 31. Qf5 {[%clk 0:01:03.1]} 31... Rg8+ {[%clk 0:01:28.3]} 32.
Kf1 {[%clk 0:01:03.9]} 32... Bg2+ {[%clk 0:01:19.5]} 33. Ke1 {[%clk 0:01:04.7]}
33... Rg6 {[%clk 0:01:04.4]} 34. Qxh5+ {[%clk 0:00:47]} 34... Kg8 {[%clk
0:01:04.8]} 35. Nxg6 {[%clk 0:00:48.5]} 1-0